Cogmind - Beta 11.1 @@@ ROGUE MODE // 2022.04.29 @ 11:36:35 Player: Demise Result: Destroyed by I8-98S(z) with Zionite Laser-S Performance ------------- Evolutions (3) 1500 Regions Visited (10) 2000 Robots Destroyed (111) 555 Value Destroyed (2942) 2942 Prototype IDs (60) 1200 Alien Tech Used (0) 0 Bonus (1558) 1558 TOTAL SCORE: 9755 Bonus ------- High Alert Combat Kills 89 Follower Combat Kills 176 Aligned with FarCom 300 Met Imprinter 300 Destroyed Z-Imprinter 1000 Friendly Fire -307 Cogmind --------- Core Integrity 0/700 Matter 300/300 Energy 78/100 System Corruption 0% Temperature Cool (9) Movement Core (50) Location -7/Deep Caves Parts ------- > --- POWER (1) -------- (None) > --- PROPULSION (2) --- (None) > --- UTILITY (8) ------ Experimental Heat Sink > --- WEAPON (2) ------- Longsword +1 > --- INVENTORY (5) ---- Zionite Light DM Reactor Zionite Glidesys I Improved Reaction Control System Master Tearclaws Peak State ------------ > --- POWER ------------ Zionite Light DM Reactor > --- PROPULSION ------- Zionite Glidesys II Zionite Glidesys II > --- UTILITY ---------- Experimental Heat Sink Large Storage Unit Nanoactuators Improved Reaction Control System Zionite Weapon Casing Zionite Heavy Carapace Advanced Component Analysis Suite > --- WEAPON ----------- Zionite Laser-S Longsword +1 > --- INVENTORY -------- Advanced Myomer Leg Zionite Glidesys I Zionite Glidesys I Experimental Heat Sink Zionite Biocell Phase Shifter Zionite Laser-M 8R-AWN's Boregun 8R-AWN's Boregun Heavy Missile Launcher Master Tearclaws CR-A16's Pointy Stick [Rating: 92] Favorites ----------- Power Micro Nuclear Core Engine Improved Ion Engine Power Core Micro Nuclear Core Reactor Zionite Light DM Reactor Propulsion Advanced Myomer Leg Treads Light Treads Leg Advanced Myomer Leg Wheel Compact Wheel Hover Unit Zionite Glidesys II Flight Unit Flight Unit Utility Large Storage Unit Device Experimental Heat Sink Storage Large Storage Unit Processor Signal Interpreter Hackware Hacking Suite Protection Light Armor Plating Weapon Light Assault Rifle Energy Gun AWS/EX-DEC Ballistic Gun Light Assault Rifle Launcher Grenade Launcher Special Weapon Mining Laser Slashing Weapon Longsword +1 Piercing Weapon CR-A16's Pointy Stick Special Melee Weapon Datajack Build | -11 -10 -10 -10 -9 -8 -7 -7 -7 -7 -7 ------- Run | Scr Mat Min Exi Min Mat Fac Low Low Zio Dee Slots Evolved 6 | . . . . . 4 2 . . . . Power . | . . . . . . . . . . . Propulsion . | . . . . . . . . . . . Utility 6 | . . . . . 4 2 . . . . Weapon . | . . . . . . . . . . . Parts Attached 182 | 4 23 9 22 3 42 25 14 8 8 24 Power 13 | . 4 2 1 1 2 2 . . . 1 Engine 7 | . 4 2 . 1 . . . . . . Core 5 | . . . 1 . 2 2 . . . . Reactor 1 | . . . . . . . . . . 1 Propulsion 13 | . 7 . 2 . 1 1 . . . 2 Treads 4 | . 4 . . . . . . . . . Leg 4 | . . . 2 . 1 1 . . . . Wheel 2 | . 2 . . . . . . . . . Hover 2 | . . . . . . . . . . 2 Flight 1 | . 1 . . . . . . . . . Utility 79 | 1 6 . 8 2 18 16 7 4 4 13 Device 39 | 1 1 . . 1 9 10 4 3 2 8 Storage 5 | . 2 . 1 . 1 . . . . 1 Processor 2 | . 1 . . . . . . . . 1 Hackware 4 | . . . . . 3 1 . . . . Protection 29 | . 2 . 7 1 5 5 3 1 2 3 Artifact . | . . . . . . . . . . . Weapon 77 | 3 6 7 11 . 21 6 7 4 4 8 Energy Gun 13 | 1 1 . 1 . 8 . . . . 2 Energy Cannon . | . . . . . . . . . . . Ballistic Gun 36 | 2 4 6 4 . 6 4 4 1 2 3 Ballistic Cannon . | . . . . . . . . . . . Launcher 5 | . . 1 2 . . . 1 1 . . Special Weapon 2 | . 1 . . . . . . . 1 . Impact Weapon . | . . . . . . . . . . . Slashing Weapon 18 | . . . 3 . 7 1 2 2 . 3 Piercing Weapon 1 | . . . . . . . . . 1 . Special Melee Weapon 2 | . . . 1 . . 1 . . . . Unidentified Prototypes 7 | . . . . . 2 . . . 1 4 Corrupted Parts 1 | . . . . . 1 . . . . . System Corruption 6 | . . . . . 6 . . . . . Parts Lost 27 | . 4 . . . 6 1 . . . 16 Power 3 | . 1 . . . 1 . . . . 1 Propulsion 3 | . . . . . . . . . . 3 Utility 14 | . 2 . . . 2 . . . . 10 Weapon 7 | . 1 . . . 3 1 . . . 2 Highest Loss Streak 11 | . 2 . . . 5 1 . . . 11 To Critical Strikes . | . . . . . . . . . . . Average Slot Usage (%) 92 | . 87 100 92 85 97 97 92 90 93 85 Engine 4 | . 11 14 6 13 1 . . . . . Core 4 | . . . 5 . 7 7 7 7 7 4 Treads 5 | . 12 28 12 . . . . . . . Leg 12 | . . . 13 28 17 14 15 15 15 9 Wheel 1 | . 12 . . . . . . . . . Device 10 | . 4 . . . 8 20 14 14 26 26 Storage 9 | . 9 14 9 14 9 7 7 7 7 7 Processor 1 | . 2 14 1 . . . . . . 3 Hackware 9 | . . . . . 21 23 23 23 8 . Protection 10 | . 5 . 15 13 14 8 7 7 11 13 Energy Gun 2 | . . . . 14 6 . . . . . Ballistic Gun 11 | . 26 27 12 . 7 5 12 10 5 3 Slashing Weapon 3 | . . . 6 . 2 6 2 3 7 6 Naked Turns . | . . . . . . . . . . . Heaviest Build 68 | 3 28 29 38 42 45 54 62 58 65 68 Greatest Support 60 | 3 40 40 60 60 60 60 60 60 60 60 Greatest Overweight (x) 11 | . 1 . 1 . . 1 1 . 1 11 Average Overweight (x) . | . . . . . . . . . . 1 Largest Inventory Capacity 15 | 5 15 15 15 15 15 15 15 15 15 15 Average Capacity 14 | 5 11 15 11 15 15 15 15 15 15 14 Most Carried 15 | 5 15 15 15 15 15 15 15 15 15 15 Average Carried 13 | 4 9 14 11 14 14 14 14 14 14 11 Final Capacity 15 | 5 15 15 15 15 15 15 15 15 15 5 Final Carried 15 | 5 15 15 15 15 15 15 15 15 15 5 Class Distribution -------------------- 54% | Scavenger-Mutant 25% | Mutant 18% | Hacker-Mutant Dominant Class ---------------- Mutant | -10/Materials Scavenger-Mutant | -10/Mines Mutant | -10/Exiles Mutant | -9/Mines Scavenger-Mutant | -8/Materials Scavenger-Mutant | -7/Factory Hacker-Mutant | -7/Lower Caves Hacker-Mutant | -7/Lower Caves Scavenger-Mutant | -7/Zion Scavenger-Mutant | -7/Deep Caves Resources | -11 -10 -10 -10 -9 -8 -7 -7 -7 -7 -7 ----------- Run | Scr Mat Min Exi Min Mat Fac Low Low Zio Dee Matter Collected 3371 | 270 379 148 616 30 629 345 370 210 121 253 Remotely . | . . . . . . . . . . . Salvage Created 4064 | 158 647 48 511 223 1510 345 335 27 . 260 Parts 263 | 17 38 11 52 5 79 21 16 7 . 17 Haulers Intercepted 5 | . 2 . . . 3 . . . . . Recyclers Shooed 7 | . 3 1 . . 2 1 . . . . Parts Field Recycled . | . . . . . . . . . . . Retrieved Matter . | . . . . . . . . . . . Parts Self-Destructed 14 | . . . . . . . 14 . . . Prevented . | . . . . . . . . . . . Kills | -11 -10 -10 -10 -9 -8 -7 -7 -7 -7 -7 ------- Run | Scr Mat Min Exi Min Mat Fac Low Low Zio Dee Combat Hostiles Destroyed 82 | . 14 5 8 6 24 6 13 2 . 4 Melee 12 | . . . 1 . 4 4 . . . 3 Guns 48 | . 14 2 . 4 15 2 9 1 . 1 AOE 19 | . . 3 7 . 4 . 4 1 . . Classes Destroyed 20 | 2 5 1 3 1 4 2 . 1 . 1 Worker 2 | . . 1 . . 1 . . . . . Builder 2 | . . . . . 2 . . . . . Tunneler 6 | 5 . . . . . 1 . . . . Hauler 5 | . 2 . . . 3 . . . . . Recycler 2 | 1 1 . . . . . . . . . Operator 3 | . 1 . . . 2 . . . . . Turret 1 | . . . 1 . . . . . . . Watcher 4 | . 3 . . . 1 . . . . . Swarmer 22 | . 6 5 . . 4 . 7 . . . Grunt 27 | . 8 . . 5 11 . 3 . . . Brawler 1 | . . . . . 1 . . . . . Duelist 2 | . . . . . 1 . 1 . . . Sentry 12 | . . . . . 8 3 1 . . . Demolisher 1 | . . . . 1 . . . . . . Hunter 2 | . . . . . . 2 . . . . Programmer 2 | . . . . . . 1 1 . . . Zionite 8 | . . . 8 . . . . . . . Z-Light 3 | . . . . . . . . . . 3 Master Thief 2 | . . . . . . . . 2 . . Assembled 7 | . . . 7 . . . . . . . Best Kill Streak 8 | 3 8 4 7 3 7 2 5 2 . 2 Combat Bots Only 8 | . 8 3 7 3 6 2 5 2 . 2 Max Kills in Single Turn 4 | 1 1 3 4 1 2 1 2 1 . 1 Gunslinging 1 | . . . . . 1 . . . . . Exploded 4 | . . 3 4 . 1 . 2 1 . . Melee 1 | . . . 1 . 1 1 . . . 1 Uniques/NPCs Destroyed 5 | . . . 4 . . . . . . 1 8R-AWN (-10/Exiles) EX-HEX (-10/Exiles) EX-DEC (-10/Exiles) EX-BIN (-10/Exiles) Z-Imprinter (-7/Deep Caves) Combat | -11 -10 -10 -10 -9 -8 -7 -7 -7 -7 -7 -------- Run | Scr Mat Min Exi Min Mat Fac Low Low Zio Dee Damage Taken 6416 | . 662 215 516 129 1436 608 390 63 . 2397 Core 1231 | . 114 18 78 . 314 73 61 . . 573 Absorbed by Shields . | . . . . . . . . . . . Redirected to Shielding 193 | . . . 11 . 97 . . . . 85 Regen/Repaired (Parts) 276 | . 125 . . . 151 . . . . . Core Remaining (%) 52 | 100 . . . 16 42 . . . . . Volleys Fired 292 | 15 83 17 54 . 61 8 26 7 . 21 Largest 2 | 2 2 2 2 . 2 2 2 2 . 2 Hottest 133 | 40 100 40 40 . 100 51 56 56 . 133 Shots Fired 535 | 30 163 31 79 16 120 15 47 8 . 26 Gun 514 | 30 161 28 66 16 120 15 45 7 . 26 Cannon . | . . . . . . . . . . . Launcher 19 | . . 3 13 . . . 2 1 . . Special 2 | . 2 . . . . . . . . . Kinetic 420 | 30 159 28 66 . 65 15 45 7 . 5 Thermal 23 | . 2 . . . . . . . . 21 Explosive 19 | . . 3 13 . . . 2 1 . . Electromagnetic 73 | . 2 . . 16 55 . . . . . Robot Hit Streak 16 | 6 11 8 5 10 15 16 5 3 . 4 Robot Miss Streak 6 | 2 3 3 4 2 4 2 6 6 . 3 Penetration Max 1 | . . . . . . . 1 . . . Secondary Targets 7 | . 2 1 . . 2 1 . . . 1 Max Gunslinging Chain 1 | . 1 1 . . 1 1 . . . 1 Autonomous 21 | . . . . 16 5 . . . . . Shots Hit Robots 449 | 21 110 18 89 15 108 24 33 8 . 23 Core Hits 252 | 10 40 13 48 5 57 17 46 3 . 13 Critical Kills 5 | . 1 . . . 1 . 2 1 . . Critical Parts Destroyed 1 | . 1 . . . . . . . . . Critical Strikes 15 | . 2 . 6 . 1 2 2 1 . 1 Destroy 6 | . 2 . . . 1 . 2 1 . . Sever 9 | . . . 6 . . 2 . . . 1 Melee Attacks 137 | . . . 63 . 26 23 5 1 4 15 Impact . | . . . . . . . . . . . Slashing 132 | . . . 59 . 26 22 5 1 4 15 Piercing . | . . . . . . . . . . . Sneak Attacks 13 | . . . 7 . 5 1 . . . . Combat Hostiles . | . . . . . . . . . . . Follow-up Attacks . | . . . . . . . . . . . Damage Inflicted 11201 | 173 928 448 3636 433 2927 761 844 296 . 755 Guns 4746 | 173 928 163 307 433 1595 167 596 64 . 320 Cannons . | . . . . . . . . . . . Explosions 1926 | . . 285 725 . 491 . 248 177 . . Melee 4521 | . . . 2604 . 833 594 . 55 . 435 Ramming 8 | . . . . . 8 . . . . . Kinetic 3078 | 173 912 163 307 . 625 167 596 64 . 71 Thermal 740 | . . . . . 491 . . . . 249 Explosive 1435 | . . 285 725 . . . 248 177 . . Electromagnetic 1419 | . 16 . . 433 970 . . . . . Impact . | . . . . . . . . . . . Slashing 4521 | . . . 2604 . 833 594 . 55 . 435 Piercing . | . . . . . . . . . . . Highest Corruption 6 | . . . . . 6 . 2 2 2 . Average Corruption 3 | . . . . . 6 . 1 2 2 . Corruption Purged . | . . . . . . . . . . . Corruption Blocked . | . . . . . . . . . . . Effects 62 | . . . . . 41 . 9 10 2 . Message Errors 16 | . . . . . 12 . 2 . 2 . Matter Fused 13 | . . . . . 8 . 1 4 . . Heat Flow Errors 8 | . . . . . 4 . 2 2 . . Energy Discharges 12 | . . . . . 7 . 3 2 . . Data Loss (minor) 6 | . . . . . 5 . . 1 . . Data Loss (major) 2 | . . . . . 1 . . 1 . . Misfires 2 | . . . . . 2 . . . . . Alerts 1 | . . . . . . . 1 . . . Weapon Failures 2 | . . . . . 2 . . . . . Overload Shots . | . . . . . . . . . . . Overflow Damage 510 | . . . 216 . 145 74 28 30 . 17 Projectiles . | . . . . . . . . . . . Explosions 52 | . . . . . 24 . 28 . . . Melee 458 | . . . 216 . 121 74 . 30 . 17 Knockbacks . | . . . . . . . . . . . Impact . | . . . . . . . . . . . Kinetic . | . . . . . . . . . . . Secondary . | . . . . . . . . . . . Self-Inflicted Damage 187 | . . 31 62 . 22 . 20 52 . . Shots 6 | . . 1 2 . 1 . 1 1 . . Rammed . | . . . . . . . . . . . Targets Rammed 2 | . . . . 1 1 . . . . . Kicked 2 | . . . . 1 1 . . . . . Crushed . | . . . . . . . . . . . Highest Temperature 348 | . 40 6 30 . 348 32 234 134 . 125 Average Temperature 54 | . 12 2 10 . 101 18 128 68 . 68 Received Heat Transfer 1839 | . 309 18 . 21 630 96 54 . . 711 Effects 2 | . . . . . 2 . . . . . Shutdowns 1 | . . . . . 1 . . . . . Energy Bleed 1 | . . . . . 1 . . . . . Siege Activations . | . . . . . . . . . . . Robots Corrupted 3 | . . . . 2 1 . . . . . Combat Hostiles 3 | . . . . 2 1 . . . . . Parts Fried 10 | . . . . 4 6 . . . . . Impact Corruptions . | . . . . . . . . . . . Robots Melted 1 | . . . . . 1 . . . . . Combat Hostiles . | . . . . . . . . . . . Parts Melted 3 | . . . . . 2 . . . . 1 Heat Transferred 896 | . . . . . 600 . . . . 296 Parts Sabotaged . | . . . . . . . . . . . Parts Stolen 4 | . . . . . . . . 4 . . Parts Stripped . | . . . . . . . . . . . Power Chain Reactions 6 | . . . . . 6 . . . . . Missiles Intercepted . | . . . . . . . . . . . Alert | -11 -10 -10 -10 -9 -8 -7 -7 -7 -7 -7 ------- Run | Scr Mat Min Exi Min Mat Fac Low Low Zio Dee Peak Influence 582 | 30 373 219 . 155 582 239 . . . . Initial 113 | . 19 58 . . . 113 . . . . Average 165 | 11 169 92 . 32 294 118 . . . . Maximum Alert Level 2 | . 1 1 . . 2 1 . . . . Low Security (%) 58 | 100 50 79 . 100 13 92 . . . . Level 1 34 | . 49 20 . . 62 7 . . . . Level 2 7 | . . . . . 24 . . . . . Level 3 . | . . . . . . . . . . . Level 4 . | . . . . . . . . . . . Level 5 . | . . . . . . . . . . . High Security . | . . . . . . . . . . . Max Security . | . . . . . . . . . . . Squads Dispatched 17 | . 3 . . . 8 6 . . . . Investigation 8 | . 2 . . . 2 4 . . . . Extermination 2 | . . . . . . 2 . . . . Reinforcement 4 | . 1 . . . 3 . . . . . Assault . | . . . . . . . . . . . Garrison 3 | . . . . . 3 . . . . . Intercept . | . . . . . . . . . . . Searches Triggered . | . . . . . . . . . . . Construction Impeded . | . . . . . . . . . . . Haulers Reinforced . | . . . . . . . . . . . Active Scanning Responses . | . . . . . . . . . . . Cargo Convoy Interrupts . | . . . . . . . . . . . Stealth | -11 -10 -10 -10 -9 -8 -7 -7 -7 -7 -7 --------- Run | Scr Mat Min Exi Min Mat Fac Low Low Zio Dee Distress Signals 6 | . 3 . . . 3 . . . . . Communications Jammed 6 | . . . . . 6 . . . . . Distress Signals 4 | . . . . . 4 . . . . . Times Spotted 155 | . 27 10 26 7 50 10 11 4 . 10 Peak Tracking Total 9 | . 5 3 9 3 7 2 7 3 . 5 Tactical Retreats 14 | . 2 1 4 . 6 1 . . . . Traps | -11 -10 -10 -10 -9 -8 -7 -7 -7 -7 -7 ------- Run | Scr Mat Min Exi Min Mat Fac Low Low Zio Dee Traps Triggered 2 | . 1 . . . . 1 . . . . Indirectly . | . . . . . . . . . . . Trap Hack Attempts 41 | . . . . . . 41 . . . . Triggered . | . . . . . . . . . . . Disarmed 1 | . . . . . . 1 . . . . Reprogrammed 10 | . . . . . 6 4 . . . . Reused 3 | . . . . . . . . . . 3 Traps Extracted 11 | . . . . . 6 4 . . . 1 Installed 5 | . . . . . . . . . . 5 Triggered . | . . . . . . . . . . . Most Traps Carried 6 | . . . . . 6 6 4 4 4 4 Machines | -11 -10 -10 -10 -9 -8 -7 -7 -7 -7 -7 ---------- Run | Scr Mat Min Exi Min Mat Fac Low Low Zio Dee Machines Disabled 8 | . . . 5 1 . . . . . 2 Max in Single Turn 2 | . . . 2 1 . . . . . . Machines Sabotaged . | . . . . . . . . . . . Garrisons Compromised . | . . . . . . . . . . . Overloaded Fab Kills . | . . . . . . . . . . . Hacking | -11 -10 -10 -10 -9 -8 -7 -7 -7 -7 -7 --------- Run | Scr Mat Min Exi Min Mat Fac Low Low Zio Dee Machines Accessed 40 | . 10 . 2 1 13 10 3 1 . . Terminals 21 | . 7 . . . 7 7 . . . . Fabricators . | . . . . . . . . . . . Repair Stations 2 | . 1 . . . 1 . . . . . Recycling Units 5 | . 2 . . . 2 1 . . . . Scanalyzers 3 | . . . . . 2 1 . . . . Garrison Access 2 | . . . . . 1 1 . . . . Total Hacks 120 | . 35 . 2 1 45 27 9 1 . . Successful 77 | . 18 . 2 1 32 14 9 1 . . Failed 42 | . 16 . . . 13 13 . . . . Catastrophic 3 | . 1 . . . . 2 . . . . Database Lockouts 1 | . 1 . . . . . . . . . Manual 54 | . 21 . 1 . 19 13 . . . . Terminals 70 | . 24 . . . 25 21 . . . . Fabricators . | . . . . . . . . . . . Repair Stations 8 | . 4 . . . 4 . . . . . Recycling Units 16 | . 7 . . . 7 2 . . . . Scanalyzers 11 | . . . . . 8 3 . . . . Garrison Access 2 | . . . . . 1 1 . . . . Terminal Hacks 33 | . 5 . 2 1 10 5 9 1 . . Record 8 | . . . 1 . . . 7 . . . Part Schematic 1 | . . . . . . 1 . . . . Robot Analysis 2 | . 1 . . . 1 . . . . . Prototype ID Bank 5 | . 1 . . . 4 . . . . . Open Door 4 | . . . . 1 . . 2 1 . . Open DSF 1 | . . . . . . 1 . . . . Branch Access Points 2 | . . . . . 1 1 . . . . Terminal Index 2 | . 1 . . . . 1 . . . . Unreport Threat 2 | . . . . . 2 . . . . . Locate Traps 2 | . 1 . . . 1 . . . . . Reprogram Traps 1 | . . . . . 1 . . . . . Recall Extermination 1 | . . . . . . 1 . . . . Hauler Manifests 1 | . 1 . . . . . . . . . EX-Prototype ID Bank 1 | . . . 1 . . . . . . . Fabricator Hacks . | . . . . . . . . . . . Repair Station Hacks 6 | . 3 . . . 3 . . . . . Scan Component 4 | . 2 . . . 2 . . . . . Repair 2 | . 1 . . . 1 . . . . . Recycling Unit Hacks 5 | . 2 . . . 2 1 . . . . Retrieve Components 5 | . 2 . . . 2 1 . . . . Scanalyzer 6 | . . . . . 4 2 . . . . Insert Component 3 | . . . . . 2 1 . . . . Analyze 3 | . . . . . 2 1 . . . . Garrison Access Hacks . | . . . . . . . . . . . Unauthorized Hacks 27 | . 8 . . . 13 6 . . . . Terminals 19 | . 7 . . . 8 4 . . . . Track 1 | . . . . . 1 . . . . . Assimilate 2 | . 2 . . . . . . . . . Botnet 15 | . 4 . . . 7 4 . . . . Operators 1 | . 1 . . . . . . . . . Fabricators . | . . . . . . . . . . . Repair Stations . | . . . . . . . . . . . Recycling Units 6 | . 1 . . . 4 1 . . . . Reject 1 | . . . . . 1 . . . . . Recyclers 2 | . 1 . . . 1 . . . . . Mask 1 | . . . . . 1 . . . . . Tunnel 2 | . . . . . 1 1 . . . . Scanalyzers . | . . . . . . . . . . . Garrison Access 2 | . . . . . 1 1 . . . . Reprogram 1 | . . . . . 1 . . . . . Watchers 1 | . . . . . . 1 . . . . Data Cores Recovered . | . . . . . . . . . . . Used . | . . . . . . . . . . . Hacking Detections 25 | . 8 . . . 10 7 . . . . Full Trace Events 5 | . 2 . . . . 3 . . . . Feedback Events . | . . . . . . . . . . . Feedback Blocked . | . . . . . . . . . . . Robot Schematics Acquired 4 | . . . . . . . . . 4 . Robots Built . | . . . . . . . . . . . Authchips . | . . . . . . . . . . . Time . | . . . . . . . . . . . Total Robot Build Rating . | . . . . . . . . . . . Part Schematics Acquired 18 | . . . . . 2 2 . . 14 . Parts Built . | . . . . . . . . . . . Authchips . | . . . . . . . . . . . Time . | . . . . . . . . . . . Total Part Build Rating . | . . . . . . . . . . . Parts Repaired 2 | . 1 . . . 1 . . . . . Time 125 | . 26 . . . 99 . . . . . Parts Recycled . | . . . . . . . . . . . Recycled Matter . | . . . . . . . . . . . Retrieved Matter . | . . . . . . . . . . . Retrieved Components 32 | . 12 . . . 18 2 . . . . Parts Scanalyzed 3 | . . . . . 2 1 . . . . Part Schematics Acquired 3 | . . . . . 2 1 . . . . Parts Damaged . | . . . . . . . . . . . Bothacking | -11 -10 -10 -10 -9 -8 -7 -7 -7 -7 -7 ------------ Run | Scr Mat Min Exi Min Mat Fac Low Low Zio Dee Used RIF Installer . | . . . . . . . . . . . Robots Hacked 4 | . . . 4 . . . . . . . Non-combat 3 | . . . 3 . . . . . . . Combat 1 | . . . 1 . . . . . . . Robot Hacks Applied 4 | . . . 4 . . . . . . . parse_system 4 | . . . 4 . . . . . . . Relay Couplers Released . | . . . . . . . . . . . Fabnet Peak Effective % . | . . . . . . . . . . . Robots Rewired . | . . . . . . . . . . . Allies Hacked . | . . . . . . . . . . . Hacks Repelled . | . . . . . . . . . . . Allies | -11 -10 -10 -10 -9 -8 -7 -7 -7 -7 -7 -------- Run | Scr Mat Min Exi Min Mat Fac Low Low Zio Dee Total Allies 10 | . 1 3 . 1 2 . 2 . . 1 Largest Group 4 | . 1 4 1 1 2 . 2 . . 1 Highest-Rated Group 119 | . 10 50 10 31 31 . 56 . . 119 Highest-Rated Ally 119 | . 10 16 10 31 31 . 31 . . 119 Total Orders 5 | . . . 2 3 . . . . . . STAY 3 | . . . 1 2 . . . . . . FOLLOW 2 | . . . 1 1 . . . . . . Ally Attacks 43 | . . 14 . 1 8 . . . . 20 Total Damage 2370 | . . 123 . 62 110 . . . . 2075 Kills 14 | . . 3 . 1 1 . . . . 9 Allies Corrupted . | . . . . . . . . . . . Allies Melted . | . . . . . . . . . . . Turrets Deployed 1 | . . . . 1 . . . . . . Intel | -11 -10 -10 -10 -9 -8 -7 -7 -7 -7 -7 ------- Run | Scr Mat Min Exi Min Mat Fac Low Low Zio Dee Robot Analysis Total 2 | . 1 . . . 1 . . . . . Derelict Logs Recovered 8 | . . 2 . 2 . . 1 1 2 . Drone Launches . | . . . . . . . . . . . Drone Recoveries . | . . . . . . . . . . . Exploration | -11 -10 -10 -10 -9 -8 -7 -7 -7 -7 -7 ------------- Run | Scr Mat Min Exi Min Mat Fac Low Low Zio Dee Turns Passed 12067 | 91 1330 854 2107 894 1864 1062 1055 561 1394 855 Spaces Moved 7134 | 70 805 489 1252 678 820 684 630 424 906 376 Core 360 | 70 166 . 118 . . . . . . 6 Treads 1124 | . 135 489 500 . . . . . . . Legs 5015 | . . . 634 678 820 684 630 424 906 239 Wheels 504 | . 504 . . . . . . . . . Hover 131 | . . . . . . . . . . 131 Flight . | . . . . . . . . . . . Fastest Speed 50 | 50 50 160 50 120 120 120 120 120 120 50 Average Speed 130 | 50 113 160 133 120 120 120 121 120 149 168 Slowest Speed 600 | 50 240 160 160 120 120 190 190 120 190 600 Overloaded Moves . | . . . . . . . . . . . Propulsion Burnouts . | . . . . . . . . . . . Robots Hopped . | . . . . . . . . . . . Cave-ins Triggered . | . . . . . . . . . . . Exploration Rate (%) 65 | 3 96 97 83 99 65 15 76 58 86 44 Regions Visited 10 Branch Regions 7 Pre-discovered Areas 9 | . . . 1 1 1 1 2 1 2 . Known Exits Taken 4 | . 1 1 1 . . 1 . . . . Unknown Exits Taken 6 | 1 . . . 1 1 . 1 1 1 . Scrap Searched 12 | . . 1 . 1 . . 4 1 5 . Spaces Dug 38 | . 1 . 2 . 12 10 5 . . 8 Terrain Destroyed 162 | . 2 17 25 . 45 10 42 8 . 13 Melee 29 | . . . 2 . 12 10 5 . . . Projectile 18 | . 2 . . . . . 2 1 . 13 AOE 115 | . . 17 23 . 33 . 35 7 . . Terrain Rammed . | . . . . . . . . . . . Walls Destroyed . | . . . . . . . . . . . Machines Disabled . | . . . . . . . . . . . Actions | -11 -10 -10 -10 -9 -8 -7 -7 -7 -7 -7 --------- Run | Scr Mat Min Exi Min Mat Fac Low Low Zio Dee Total 9351 | 100 1086 538 1579 761 1563 885 861 471 940 567 Wait 1331 | 7 134 15 127 69 590 84 183 16 12 94 Move 7124 | 69 804 488 1251 677 819 683 629 423 905 376 Hop . | . . . . . . . . . . . Pick Up 95 | 4 23 1 24 5 8 8 2 8 3 9 Fast Attach 57 | 4 9 1 10 1 14 6 . 2 3 7 Attach 44 | . 3 . 6 1 9 4 1 3 4 13 Detach 25 | 1 1 . 4 . 3 1 . 2 4 9 Swap 81 | . 11 8 6 1 19 15 13 3 1 4 Drop 117 | . 18 8 34 6 13 12 2 6 4 14 Fire 292 | 15 83 17 54 . 61 8 26 7 . 21 Melee 137 | . . . 63 . 26 23 5 1 4 15 Ram . | . . . . . . . . . . . Kick 2 | . . . . 1 1 . . . . . Crush . | . . . . . . . . . . . Escape Stasis . | . . . . . . . . . . . Rewire . | . . . . . . . . . . . Trap 46 | . . . . . . 41 . . . 5 Miscellaneous . | . . . . . . . . . . . Route ------- -11/Scrapyard -10/Materials (discovered 5 exits: *Mat x3 / *Min x2) -10/Mines (discovered 3 exits: *Mat x2 / *Exi) -10/Exiles (discovered 2 exits: *Min x2) -9/Mines (discovered 2 exits: *Mat x2) -8/Materials -7/Factory (discovered 4 exits: Sto x2 / *Low x2) -7/Lower Caves -7/Lower Caves (discovered 2 exits: [*Fac] / [*Zio]) -7/Zion (discovered 2 exits: [*Dee] / [*Pro]) -7/Deep Caves History --------- Turn | Location | Event 9 | -11/Scrapyard | Discovered new exit (range 16) 92 | -11/Scrapyard | Entered Materials 100 | -10/Materials | Central database locked down 321 | -10/Materials | Build established: Mutant 359 | -10/Materials | Discovered new exit (range 13) 413 | -10/Materials | Discovered new exit (range 16) 652 | -10/Materials | Destroyed 8 combat bots 685 | -10/Materials | Repaired Lgt. Treads 843 | -10/Materials | Discovered new exit (range 12) 1037 | -10/Materials | Discovered new exit (range 13) 1064 | -10/Materials | Discovered new exit (range 14) 1197 | -10/Materials | Identified exit to Mines 1358 | -10/Materials | Identified exit to Materials 1422 | -10/Materials | Entered Mines 1422 | -10/Mines | Accompanied by 1 ally 1476 | -10/Mines | Build established: Scavenger-Mutant 1478 | -10/Mines | Assisted by bots powering up and referring to "LRC-V3" 1545 | -10/Mines | Discovered exit to Materials (range 15) 1663 | -10/Mines | Learned Materials stockpile data 1753 | -10/Mines | Joined a pair of Derelicts in attacking an 0b10 outpost 2014 | -10/Mines | Learned Materials interactive machine intel 2053 | -10/Mines | Discovered exit to Materials (range 11) 2063 | -10/Mines | Core integrity fell below 50% 2268 | -10/Mines | Deemed a non-threat by the Exiles lab entrance 2268 | -10/Mines | Discovered new exit (range 5) 2273 | -10/Mines | Identified exit to Exiles 2276 | -10/Mines | Entered Exiles 2276 | -10/Exiles | Accompanied by 1 ally 2302 | -10/Exiles | Discovered new exit (range 15) 2321 | -10/Exiles | Identified exit to Mines 2355 | -10/Exiles | Met 8R-AWN 2380 | -10/Exiles | Met EX-HEX 2456 | -10/Exiles | Met EX-DEC 2503 | -10/Exiles | Learned location of Zion (-7) 2530 | -10/Exiles | Met EX-BIN 2554 | -10/Exiles | Aligned with FarCom system 2555 | -10/Exiles | Given EX-Vault access code 2592 | -10/Exiles | Opened EX-Vault 2610 | -10/Exiles | Found Longsword +1 2615 | -10/Exiles | Found Skeleton Box 2654 | -10/Exiles | Warned to stay clear of 0b10 Research branches 2739 | -10/Exiles | Build established: Mutant 2768 | -10/Exiles | Discovered exit to Mines (range 14) 2940 | -10/Exiles | Attacked by the Exiles 2995 | -10/Exiles | Destroyed 7 combat bots 3370 | -10/Exiles | Destroyed 8R-AWN 3627 | -10/Exiles | Found Firepult 3783 | -10/Exiles | Build established: Scavenger-Mutant 3927 | -10/Exiles | Destroyed EX-HEX 4148 | -10/Exiles | Destroyed EX-DEC 4160 | -10/Exiles | Destroyed EX-BIN 4179 | -10/Exiles | Core integrity fell below 20% 4246 | -10/Exiles | Found Deploy-a-Sentry 4253 | -10/Exiles | Found AWS/EX-DEC 4348 | -10/Exiles | Found 8R-AWN's Boregun 4349 | -10/Exiles | Found 8R-AWN's Boregun 4383 | -10/Exiles | Stole four prototypes: Skeleton Box, Firepult, Longsword +1, Deploy-a-Sentry 4383 | -10/Exiles | Entered Mines 4383 | -9/Mines | Accompanied by 1 ally 4390 | -9/Mines | Met a Derelict who couldn't figure out how to use a Trap Extractor 4409 | -9/Mines | Assembled infested the area 4490 | -9/Mines | Learned location of Storage (-7) 4507 | -9/Mines | DAS Turret deployed 4560 | -9/Mines | Found a damaged Exp. Sensor Array with a note attached 4563 | -9/Mines | Found Prototype Device 4577 | -9/Mines | Identified Exp. Sensor Array 4642 | -9/Mines | Discovered new exit (range 15) 4680 | -9/Mines | Discovered new exit (range 6) 4694 | -9/Mines | Build established: Mutant 5098 | -9/Mines | Received a Mining Laser from a helpful Derelict 5277 | -9/Mines | Entered Materials 5277 | -8/Materials | Accompanied by 1 ally 5277 | -8/Materials | Evolved 4 slots: Utility x4 5279 | -8/Materials | Loaded intel: 19 interactive machine locations 5593 | -8/Materials | Build established: Scavenger-Mutant 5691 | -8/Materials | Lost 5 parts (1p1u3w) 5782 | -8/Materials | Garrison activated, responded to threat 6009 | -8/Materials | Repaired Adv. Myomer Leg 6378 | -8/Materials | Core integrity fell below 50% 6430 | -8/Materials | Discovered new exit (range 15) 7141 | -8/Materials | Entered Factory 7141 | -7/Factory | Evolved 2 slots: Utility x2 7142 | -7/Factory | Identified exit to Lower Caves 7788 | -7/Factory | Build established: Hacker-Mutant 7822 | -7/Factory | Identified exit to Storage 8202 | -7/Factory | Build established: Scavenger-Mutant 8203 | -7/Factory | Entered Lower Caves 8512 | -7/Lower Caves | Build established: Hacker-Mutant 9073 | -7/Lower Caves | A Commander dispatched an escort 9085 | -7/Lower Caves | Learned location of Armory (-3) 9085 | -7/Lower Caves | Learned location of 1 exit from Research 9085 | -7/Lower Caves | Learned Extension trap positions 9085 | -7/Lower Caves | Learned Extension stockpile data 9133 | -7/Lower Caves | Discovered new exit (range 6) 9258 | -7/Lower Caves | Build established: Scavenger-Mutant 9258 | -7/Lower Caves | Entered another Lower Caves area 9258 | -7/Lower Caves | Accompanied by 2 allies 9259 | -7/Lower Caves | Commander's escort returned to base 9344 | -7/Lower Caves | Discovered new exit (range 8) 9742 | -7/Lower Caves | Discovered new exit (range 15) 9743 | -7/Lower Caves | Spotted RK-7DM(f) 9745 | -7/Lower Caves | Encountered a Master Thief 9745 | -7/Lower Caves | Spotted WQ-TJN(f) 9745 | -7/Lower Caves | Spotted 4C-UH6(f) 9746 | -7/Lower Caves | Encountered a Master Thief 9746 | -7/Lower Caves | Encountered a Master Thief 9748 | -7/Lower Caves | Longsword +1 stolen by Master Thief 9749 | -7/Lower Caves | Skeleton Box stolen by Master Thief 9751 | -7/Lower Caves | Destroyed WQ-TJN(f) 9753 | -7/Lower Caves | Firepult stolen by Master Thief 9756 | -7/Lower Caves | Destroyed RK-7DM(f) 9802 | -7/Lower Caves | Build established: Hacker-Mutant 9819 | -7/Lower Caves | Entered Zion 9854 | -7/Zion | Given A8's code to call for help 9931 | -7/Zion | Discovered new exit (range 16) 10011 | -7/Zion | System corruption cleaned by Quarantine Array 10067 | -7/Zion | Found Prototype Special Weapon 10067 | -7/Zion | Identified RU-N14's Throwing Claymores 10147 | -7/Zion | Given the Hacking Drone Bay 10152 | -7/Zion | Found Prototype Device 10153 | -7/Zion | Identified Hacking Drone Bay 10197 | -7/Zion | Received a visual enhancement algorithm 10347 | -7/Zion | Remotely autohacked Sealed Blast Doors 10359 | -7/Zion | Remotely autohacked Sealed Blast Doors 10359 | -7/Zion | Remotely autohacked Sealed Blast Doors 10359 | -7/Zion | Remotely autohacked Sealed Blast Doors 10515 | -7/Zion | Learned location of Warlord (-5) 10774 | -7/Zion | Build established: Scavenger-Mutant 10823 | -7/Zion | Learned Factory emergency access door positions 10919 | -7/Zion | Found CR-A16's Pointy Stick 11209 | -7/Zion | Discovered new exit (range 3) 11209 | -7/Zion | Saw the warning signs outside the Deep Caves entrance 11213 | -7/Zion | Entered Deep Caves 11215 | -7/Deep Caves | Met 5H-AD0 11631 | -7/Deep Caves | Z-Facility disabled 11733 | -7/Deep Caves | Attacked by Z-Imprinter 11773 | -7/Deep Caves | Destroyed Z-Imprinter 11780 | -7/Deep Caves | Core integrity fell below 50% 11806 | -7/Deep Caves | Lost 5 parts (1p1n3u) 11828 | -7/Deep Caves | Found Prototype Protection 11828 | -7/Deep Caves | Identified Zio. Weapon Casing 12005 | -7/Deep Caves | Found Prototype Protection 12018 | -7/Deep Caves | Identified Zio. Heavy Carapace 12063 | -7/Deep Caves | Core integrity fell below 20% 12068 | -7/Deep Caves | Destroyed by I8-98S(z) with Zionite Laser-S Last Messages --------------- 12046_ Zio. Laser-S destroyed. 12048_ Zio. Glidesys II destroyed. 12051_ Phase Shifter destroyed. 12052_ HV Slug penetrates I8-98S(z). 12052_ HV Slug penetrates Earth. 12053_ Zio. Biocell destroyed. 12054_ Adv. Component Analysis Suite destroyed. 12055_ HV Slug penetrates WN-APR(z). 12055_ HV Slug penetrates Wall. 12055_ Destroyed Zio. Glidesys I. 12055_ Zio. Laser-M destroyed. 12058_ Dropped Lrg. Storage Unit. 12060_ Dropped 8R-AWN's Boregun. 12060_ Nanoactuators destroyed. 12061_ Destroyed Zio. Light Carapace. 12063_ Destroyed Imp. Reaction Control System. 12065_ Acquired 27 matter. 12066_ WN-APR(z) heat spikes uncontrollably. 12066_ Zio. Laser-S melted. 12066_ WN-APR(z) destroyed. Map ----- +----------------------------------------------------+ | | | | | | | | | | | | | | | | | | | | | | | | | | | | | | | | | | | | | | | | | | | | | | | ?????????????????# ;;=#%#;#######????????????????? | | ?????????????????# []![*z![*!!!!##???????????????? | | ???????????????????#[z!%!@ ;#???????????????? | | ???????????????????#z=/#! #######???????????????? | | ??????????????????## ##;####?????????????????????? | | ????????????????### ####??????????????????????? | | ????????????????# # ???????????????? | | ????????????????# ???????????????? | | ????????????????## ??????????????? | | ?????????????????#;# ??????????????? | | ?????????????????# ## ???????????????? | | ?????????????????# # ????????? | | ????????????????##"# "???????" | | ???????????????## # "???""""" | | ???????????????# """""""" | | ???????????????#! # """"" | | ???????????????##!## """ | | ????????????????##"# " | | ?????????????????## " | | ????????????????##"" | | ????????????????#""# | | ???????????????## # | | ???????????????# | | ???????????????# | | ???????????????# | | ???????????????## | | ????????????????### | +----------------------------------------------------+ Best States ------------- Heat Dissipation 60 Energy Generation 27 Energy Capacity 700 Matter Stores 300 Matter Capacity 300 Sight Range 16 Robot Scan Range 20 Terrain Scan Density 10 Jamming Range 16 Armor Coverage 1200 Resistance: TH 10 Core Shielding 20 Propulsion Shielding 66 Weapon Shielding 100 Melee Speed Boost 30 Phase Shifting 5 Evasion (%) 55 Recoil Reduction 2 Salvage Targeting 4 Offensive Hacking 20 Defensive Hacking 10 Trap Extractor Capacity 6 Item Schematics ----------------- Exp. Sensor Array | -8/Materials | Scanalyzed Hacking Suite | -8/Materials | Scanalyzed Flak Gun | -7/Factory | Scanalyzed System Shield | -7/Factory | Hacked Fission Core | -7/Zion | Archive Weapon Cycler | -7/Zion | Archive Plasma Cannon | -7/Zion | Archive Imp. Particle Charger | -7/Zion | Archive Mak. Trap Scanner | -7/Zion | Archive Remote Datajack | -7/Zion | Archive Adv. Heat Sink | -7/Zion | Archive Kinecellerator | -7/Zion | Archive Xenon Bombardment Thruster | -7/Zion | Archive Drone Bay | -7/Zion | Archive Imp. Melee Analysis Suite | -7/Zion | Archive EM Disruption Field | -7/Zion | Archive Mak. Axe | -7/Zion | Archive Mass Driver | -7/Zion | Archive Robot Schematics ------------------ T-07 Excavator | -7/Zion | Archive H-55 Commando | -7/Zion | Archive G-47 Trooper | -7/Zion | Archive C-57 Dissector | -7/Zion | Archive Fabricated ------------ Nothing Alien Tech Used ----------------- None Achievements -------------- None Challenges ------------ None Game ------ Seed AutogunShieldCompressor Manual? 0 Play Time 01:48:58 Cumulative 478.2 hours Start 2022.04.29 @ 09:45:53 End 2022.04.29 @ 11:36:35 Sessions 1 Manual Loads 0 Difficulty Rogue Special Mode None Game No. 394 Rogue 394 Adventurer 0 Explorer 0 Win Type - Total 3 Types 2/0/0/1/0/0/0/0/0 Lore% 68 Gallery% 78 Achievement% 66 Wizard Run 0 Options --------- ASCII 0 Keyboard 1 Movement Numpad Keybinds 0 Fullscreen 1 Font 12/Terminus Map View 83x54 Tactical HUD 1 Map Filters NONE Filters NONE Steam 1 RUN: a0577620-cd8d-4ae6-b867-42da3c1d65e4